bitfinex-derivatives/quotes_SOLF0:USTF0_20250907
["timestamp","ask_amount","ask_price","bid_price","bid_amount"]
[1757219200908,7.4,202.58,202.56,9.03521799]
[1757219201113,7.4,202.58,202.57,4.44547649]
[1757219203522,8.94462491,202.58,202.57,4.44547649]
[1757219203726,14.47954896,202.58,202.57,4.44547649]
[1757219204317,8.94462491,202.58,202.57,4.44547649]
[1757219205216,8.94462491,202.58,202.54,8.18]
[1757219205415,7.4,202.57,202.55,4.4240235]
[1757219205619,7.4,202.57,202.56,4.4240235]
[1757219211621,7.4,202.57,202.5,7.4]
[1757219211822,7.4,202.57,202.51,9.00953536]
[1757219212017,5.53492405,202.58,202.52,16.40953536]
[1757219212322,7.48,202.58,202.53,9.00953536]
[1757219212521,7.48,202.58,202.54,4.42685731]
[1757219212723,7.48,202.58,202.55,4.42685731]
[1757219213022,7.48,202.58,202.52,7.4]
[1757219213224,7.48,202.58,202.53,9.0085643]
[1757219213424,7.48,202.58,202.54,4.42638018]
[1757219213623,7.48,202.58,202.55,4.42638018]
[1757219213824,7.48,202.58,202.52,7.4]
[1757219214021,7.48,202.58,202.53,9.00762238]
[1757219214327,7.48,202.58,202.54,4.42591736]
[1757219214527,7.48,202.58,202.52,7.4]
[1757219214728,7.48,202.58,202.53,4.42551619]
[1757219214925,7.48,202.58,202.54,4.42551619]
[1757219215123,7.48,202.58,202.52,7.4]
[1757219215325,7.48,202.58,202.53,4.42516994]
[1757219215526,7.48,202.58,202.54,4.42516994]
[1757219215726,7.48,202.58,202.52,7.4]
[1757219215926,13.01492405,202.58,202.53,4.42519248]
[1757219216130,13.01492405,202.58,202.54,4.42519248]
[1757219216330,7.48,202.58,202.52,7.4]
[1757219216525,7.48,202.58,202.53,4.42479588]
[1757219216725,7.48,202.58,202.54,4.42479588]
[1757219216927,7.48,202.58,202.52,7.4]
[1757219217230,7.48,202.58,202.53,4.42479588]
[1757219217432,7.48,202.58,202.54,4.42479588]
[1757219217628,7.48,202.58,202.52,7.4]
[1757219217829,7.48,202.58,202.53,11.82445687]
[1757219218028,7.48,202.58,202.54,4.42445687]
[1757219218226,5.53492405,202.59,202.53,7.4]
[1757219218431,13.01492405,202.59,202.48,7.4]
[1757219218631,13.01492405,202.59,202.5,7.4]
[1757219218832,13.01492405,202.59,202.52,7.4]
[1757219219035,13.01492405,202.59,202.53,4.42417064]
[1757219219334,13.01492405,202.59,202.52,7.4]
[1757219219527,66.12,202.6,202.53,4.42393349]
[1757219219528,7.48,202.57,202.53,4.42393349]
[1757219219733,7.48,202.57,202.54,7.4]
[1757219220027,5.53492405,202.58,202.54,7.4]
[1757219220233,7.48,202.57,202.54,7.4]
[1757219220532,5.53492405,202.58,202.54,7.4]
[1757219221627,7.48,202.57,202.54,7.4]
[1757219222234,5.53492405,202.58,202.54,7.4]
[1757219223031,7.48,202.57,202.54,7.4]
[1757219223539,5.53492405,202.58,202.54,7.4]
[1757219224241,7.48,202.57,202.54,7.4]
[1757219226337,7.48,202.57,202.47,2.41464206]
[1757219226539,5.53492405,202.58,202.51,7.4]
[1757219226739,5.53492405,202.58,202.53,7.4]
[1757219226941,5.53492405,202.59,202.54,4.4230581]
[1757219227140,7.48,202.58,202.56,7.4]
[1757219229748,7.48,202.58,202.5,2.41464206]
[1757219229949,7.48,202.58,202.52,7.4]
[1757219230243,7.48,202.58,202.53,8.99938069]
[1757219230447,7.48,202.58,202.54,4.42332176]
[1757219230647,7.48,202.58,202.56,7.4]
[1757219230849,13.01492405,202.61,202.54,7.4]
[1757219231044,13.01492405,202.61,202.55,4.42322249]
[1757219231349,13.01492405,202.61,202.57,7.4]
[1757219231549,13.01492405,202.61,202.54,7.4]
[1757219231753,5.53492405,202.61,202.55,4.42346686]
[1757219231950,7.48,202.6,202.56,4.42346686]
[1757219232151,7.48,202.6,202.57,4.42346686]
[1757219232351,7.48,202.6,202.58,7.4]
[1757219237353,13.01492405,202.6,202.58,7.4]
[1757219240149,5.53492405,202.6,202.54,8.05]
[1757219240350,5.53492405,202.6,202.56,8.05]
[1757219240548,13.53492405,202.61,202.58,8.05]
[1757219240851,13.53492405,202.61,202.54,8.05]
[1757219241052,13.53492405,202.61,202.53,2.41464206]
[1757219241053,13.53492405,202.61,202.55,9.00294521]
[1757219241355,13.53492405,202.61,202.56,9.00294521]
[1757219241550,13.53492405,202.61,202.57,4.42416694]
[1757219241756,13.53492405,202.61,202.59,8.05]
[1757219241955,13.53492405,202.61,202.54,8.05]
[1757219242156,13.53492405,202.61,202.56,8.05]
[1757219242356,13.53492405,202.61,202.57,4.42444155]
[1757219242557,13.53492405,202.61,202.58,12.47444155]
[1757219242756,13.53492405,202.61,202.54,8.05]
[1757219242956,13.53492405,202.61,202.55,9.00408577]
[1757219243256,13.53492405,202.61,202.56,9.00408577]
[1757219243557,13.53492405,202.61,202.58,8.05]
[1757219243857,8.0,202.6,202.58,8.05]
[1757219255661,8.0,202.6,202.54,8.05]
[1757219255956,8.0,202.6,202.55,12.47412529]
[1757219256263,5.53492405,202.61,202.56,12.47412529]
[1757219256461,8.0,202.6,202.56,8.05]
[1757219256757,5.53492405,202.61,202.56,8.05]
[1757219256965,8.0,202.6,202.56,8.05]
[1757219257155,5.53492405,202.61,202.56,8.05]
[1757219257758,8.0,202.6,202.54,8.05]
[1757219257960,8.0,202.6,202.55,12.47421641]
[1757219258258,8.0,202.6,202.57,8.05]
[1757219258459,8.0,202.6,202.5,8.05]
[1757219258660,13.53492405,202.6,202.54,8.05]
[1757219258873,8.0,202.59,202.56,8.05]
[1757219259359,5.53492405,202.6,202.56,8.05]
[1757219259656,8.0,202.59,202.56,8.05]
[1757219259855,8.0,202.58,202.53,8.05]
[1757219260063,5.53492405,202.58,202.54,4.42476662]
[1757219260265,8.0,202.57,202.53,8.05]
[1757219260464,5.53492405,202.58,202.54,4.4249501]
[1757219260664,8.0,202.57,202.53,8.05]
[1757219260865,5.53492405,202.58,202.54,4.4249501]
[1757219261062,5.53492405,202.58,202.53,8.05]
[1757219261063,8.0,202.57,202.53,8.05]
[1757219261266,8.0,202.57,202.54,4.4249501]
[1757219261472,8.0,202.57,202.53,8.05]
[1757219261773,5.53492405,202.58,202.54,4.42509299]
[1757219262069,5.53492405,202.58,202.53,8.05]
[1757219262268,8.0,202.57,202.54,4.42509299]
[1757219262473,8.0,202.57,202.51,8.05]
[1757219262670,5.53492405,202.58,202.53,8.05]
[1757219262870,8.0,202.57,202.54,12.47523955]
[1757219263068,5.53492405,202.58,202.54,12.47523955]
[1757219263069,5.53492405,202.58,202.54,8.05]
[1757219263868,8.0,202.57,202.54,8.05]
[1757219264067,8.0,202.57,202.55,4.42538991]
[1757219264267,8.0,202.57,202.54,8.05]
[1757219264468,5.53492405,202.58,202.55,4.42554432]
[1757219264668,8.0,202.57,202.54,8.05]
[1757219264869,8.0,202.57,202.55,4.42554432]
[1757219265068,8.0,202.57,202.54,8.05]
[1757219265270,8.0,202.57,202.55,4.42554432]
[1757219265471,8.0,202.57,202.54,8.05]
[1757219265773,8.0,202.57,202.55,4.42552551]
[1757219265969,8.0,202.57,202.54,8.05]
[1757219266166,8.0,202.57,202.55,4.42900947]
[1757219266369,8.0,202.57,202.54,8.05]
[1757219266674,5.53492405,202.58,202.55,4.42916152]
[1757219266973,8.0,202.57,202.54,8.05]
[1757219267170,5.53492405,202.58,202.55,4.42916152]
[1757219267369,8.0,202.57,202.54,8.05]
[1757219267569,8.0,202.57,202.55,4.42931775]
[1757219267764,5.53492405,202.58,202.54,8.05]
[1757219268073,5.53492405,202.58,202.55,4.42931775]
[1757219268276,5.53492405,202.58,202.54,8.05]
[1757219268464,8.0,202.57,202.55,4.42947841]
[1757219268666,8.0,202.57,202.54,8.05]
[1757219268866,5.53492405,202.58,202.55,4.42947841]
[1757219269070,5.53492405,202.58,202.49,2.41464206]
[1757219269378,7.74,202.57,202.51,7.77]
[1757219269674,7.74,202.56,202.53,7.77]
[1757219269873,7.74,202.56,202.54,4.42950092]
[1757219270071,7.74,202.56,202.55,4.42950092]
[1757219277685,7.74,202.56,202.53,7.77]
[1757219277887,7.74,202.56,202.54,4.42873394]
[1757219278085,7.74,202.56,202.53,7.77]
[1757219278284,7.74,202.56,202.54,4.42873394]
[1757219278487,7.74,202.56,202.53,7.77]
[1757219278687,7.74,202.56,202.54,4.42842024]
[1757219278888,7.74,202.56,202.52,7.77]
[1757219279186,7.74,202.56,202.53,12.19842024]
[1757219279386,7.74,202.56,202.54,4.42842024]
[1757219279587,7.74,202.56,202.53,7.77]
[1757219279787,7.74,202.56,202.54,4.42813814]
[1757219279988,7.74,202.56,202.53,7.77]
[1757219280186,7.74,202.56,202.54,4.42813814]
[1757219280491,7.74,202.56,202.53,7.77]
[1757219280688,7.74,202.56,202.54,4.42805087]
[1757219280887,7.74,202.56,202.53,7.77]
[1757219281089,7.74,202.56,202.54,4.42805087]
[1757219281288,7.74,202.56,202.53,7.77]
[1757219281488,7.74,202.56,202.54,4.4277992]
[1757219281689,7.74,202.56,202.53,7.77]
[1757219281887,7.74,202.56,202.54,4.4277992]
[1757219282087,7.74,202.56,202.53,7.77]
[1757219282290,7.74,202.56,202.54,4.4277992]
[1757219282493,7.74,202.56,202.52,7.77]
[1757219282683,7.74,202.56,202.53,4.42757493]
[1757219282886,7.74,202.56,202.55,7.77]
[1757219283188,7.74,202.56,202.52,7.77]
[1757219283390,7.74,202.56,202.53,12.1974898]
[1757219283589,7.74,202.56,202.54,4.4274898]
[1757219283790,7.74,202.56,202.51,1.54548721]
[1757219283990,7.74,202.56,202.53,7.77]
[1757219284194,7.74,202.56,202.54,12.19737633]
[1757219284391,7.74,202.56,202.54,7.77]
[1757219287590,5.53492405,202.58,202.54,7.77]
[1757219287793,7.74,202.57,202.51,9.31548721]
[1757219287994,7.74,202.56,202.53,7.77]
[1757219288291,7.74,202.56,202.54,4.42712742]
[1757219288493,7.74,202.56,202.53,7.77]
[1757219288693,7.74,202.56,202.54,4.42719466]
[1757219288893,7.74,202.56,202.53,7.77]
[1757219289094,7.74,202.56,202.54,4.42719466]
[1757219289293,7.74,202.56,202.53,7.77]
[1757219289496,7.74,202.56,202.54,4.42729625]
[1757219289692,7.74,202.56,202.53,7.77]
[1757219289993,7.74,202.56,202.54,4.42729625]
[1757219290192,7.74,202.56,202.53,7.77]
[1757219290492,7.74,202.56,202.54,4.42743444]
[1757219290693,7.74,202.56,202.53,7.77]
[1757219290888,7.74,202.56,202.54,4.4274332]
[1757219291093,7.74,202.56,202.53,7.77]
[1757219291295,7.74,202.56,202.54,4.4274332]
[1757219291494,7.74,202.56,202.53,7.77]
[1757219291685,7.74,202.56,202.54,4.42760716]
[1757219291887,7.74,202.56,202.53,7.77]
[1757219292087,7.74,202.56,202.54,4.42760716]
[1757219292294,7.74,202.56,202.53,7.77]
[1757219292490,7.74,202.56,202.54,4.4278198]
[1757219292686,7.74,202.56,202.53,7.77]
[1757219292896,7.74,202.56,202.54,4.4278198]
[1757219293094,7.74,202.56,202.53,7.77]
[1757219293294,7.74,202.56,202.54,4.4278198]
[1757219293500,7.74,202.56,202.53,7.77]
[1757219293794,7.74,202.56,202.54,4.42807367]
[1757219293993,7.74,202.56,202.53,7.77]
[1757219294193,7.74,202.56,202.54,4.42807367]
[1757219294393,7.74,202.56,202.53,7.77]
[1757219294593,7.74,202.56,202.54,4.42837208]
[1757219294793,7.74,202.56,202.53,7.77]
[1757219294994,7.74,202.56,202.54,4.42837208]
[1757219295191,7.74,202.56,202.53,7.77]
[1757219295395,7.74,202.56,202.54,4.42868359]
[1757219295596,7.74,202.56,202.53,7.77]
[1757219295901,7.74,202.56,202.54,4.4287194]
[1757219296200,7.74,202.56,202.53,7.77]
[1757219296400,7.74,202.56,202.54,4.42912145]
[1757219296602,7.74,202.56,202.53,7.77]
[1757219296803,7.74,202.56,202.54,4.42912145]
[1757219297002,7.74,202.56,202.53,7.77]
[1757219297198,7.74,202.56,202.54,4.42912145]
[1757219297402,7.74,202.56,202.53,7.77]
[1757219297593,7.74,202.56,202.54,4.4295862]
[1757219297799,7.74,202.56,202.53,7.77]
[1757219297999,7.74,202.56,202.54,4.4295862]
[1757219298301,7.74,202.56,202.55,4.4300827]
[1757219304208,13.27492405,202.56,202.55,4.4300827]
[1757219305911,13.27492405,202.56,202.53,7.77]
[1757219306406,13.27492405,202.56,202.54,4.4347036]
[1757219306706,13.27492405,202.56,202.53,7.77]
[1757219307401,13.27492405,202.56,202.54,4.43480678]
[1757219307601,13.27492405,202.56,202.55,4.43480678]
[1757219308110,13.27492405,202.56,202.53,7.77]
[1757219309110,13.27492405,202.56,202.54,4.43492642]
[1757219309309,13.27492405,202.56,202.55,4.43492642]
[1757219311709,7.74,202.56,202.55,4.43492642]
[1757219321119,7.74,202.56,202.55,4.43606347]
[1757219324120,7.74,202.56,202.5,9.57548721]
[1757219324421,13.38940789,202.55,202.52,8.03]
[1757219324619,13.38940789,202.55,202.53,4.43578699]
[1757219324823,5.53940789,202.55,202.54,4.43578699]
[1757219325622,13.38940789,202.55,202.54,4.43578699]
[1757219332028,13.38940789,202.55,202.54,4.44780961]
[1757219333329,5.53940789,202.56,202.54,11.96780961]
[1757219333530,5.53940789,202.56,202.55,4.44780961]
[1757219333738,5.53940789,202.56,202.55,11.96780961]
[1757219334030,13.02940789,202.56,202.55,11.96780961]
[1757219336029,5.53940789,202.56,202.55,11.96780961]
[1757219336231,13.02940789,202.56,202.55,11.96780961]
[1757219336431,13.02940789,202.56,202.55,4.44780961]
[1757219343439,7.49,202.56,202.5,7.52]
[1757219343740,5.5392231,202.55,202.51,9.04801802]
[1757219343940,5.5392231,202.55,202.52,9.04801802]
[1757219344144,13.0292231,202.56,202.54,7.52]
[1757219344838,5.5392231,202.56,202.49,4.4438]
[1757219345042,5.5392231,202.56,202.51,7.52]
[1757219345238,5.5392231,202.56,202.53,7.52]
[1757219345441,5.5392231,202.56,202.54,11.96778788]
[1757219345643,13.0292231,202.56,202.55,4.44778788]
[1757219348450,5.5392231,202.56,202.55,11.96778788]
[1757219348649,5.5392231,202.57,202.56,7.52]
[1757219348853,5.5392231,202.57,202.56,11.96778788]
[1757219349150,5.5392231,202.57,202.56,7.52]
[1757219350354,5.5392231,202.58,202.56,7.52]
[1757219350556,13.0292231,202.58,202.56,7.52]
[1757219357359,7.49,202.57,202.56,7.52]
[1757219357560,7.49,202.57,202.56,4.447228]
[1757219359462,7.49,202.57,202.53,7.52]
[1757219359657,13.0292231,202.57,202.55,8.04]
[1757219359859,8.02,202.58,202.52,8.04]
[1757219360157,8.02,202.54,202.53,4.44719124]
[1757219367957,5.53255881,202.55,202.54,8.04]
[1757219368163,5.53255881,202.55,202.54,12.48719124]
[1757219368357,13.55255881,202.55,202.54,4.44719124]
[1757219369664,8.02,202.55,202.54,4.44719124]
[1757219369868,8.02,202.55,202.54,4.4471629]
[1757219373764,8.02,202.55,202.51,8.04]
[1757219373765,13.55255881,202.55,202.51,8.04]
[1757219373972,13.55255881,202.55,202.52,17.17261978]
[1757219374172,13.55255881,202.55,202.53,4.44728082]
[1757219374365,13.55255881,202.55,202.52,8.04]
[1757219374668,8.02,202.54,202.53,4.44730984]
[1757219394188,8.02,202.54,202.52,8.04]
[1757219399693,13.55255881,202.54,202.52,8.04]
[1757219401493,13.55255881,202.54,202.53,4.45803211]
[1757219407694,5.53255881,202.54,202.53,12.64803211]
[1757219407902,5.53255881,202.55,202.53,9.12338078]
[1757219408099,5.53255881,202.56,202.54,9.12338078]
[1757219408400,5.53255881,202.56,202.55,12.64803211]
[1757219409603,13.18255881,202.57,202.55,12.64803211]
[1757219409902,13.18255881,202.57,202.56,4.45803211]
[1757219412702,13.18255881,202.57,202.56,4.45745334]
[1757219412903,13.18255881,202.57,202.55,8.19]
[1757219415305,13.18255881,202.57,202.53,1.54559826]
[1757219415604,13.18255881,202.57,202.55,8.19]
[1757219416295,5.53255881,202.58,202.53,1.54559826]
[1757219416494,7.65,202.58,202.55,8.19]
[1757219416700,7.65,202.58,202.53,1.54559826]
[1757219416701,7.65,202.58,202.56,12.65279932]
[1757219416905,7.65,202.58,202.57,4.46279932]
[1757219417400,7.65,202.58,202.56,8.19]
[1757219418508,5.53255881,202.59,202.58,8.19]
[1757219419209,5.53255881,202.6,202.58,8.19]
[1757219419507,13.65255881,202.6,202.58,8.19]
[1757219419711,5.53255881,202.59,202.58,8.19]
[1757219420711,5.53255881,202.61,202.58,4.45961289]
[1757219420915,5.53255881,202.61,202.6,7.67]
[1757219421112,5.53255881,202.63,202.61,7.67]
[1757219421313,5.53255881,202.63,202.61,9.21559826]
[1757219421511,13.65255881,202.63,202.61,9.21559826]
[1757219421712,13.65255881,202.63,202.61,7.67]
[1757219422213,8.12,202.63,202.61,7.67]
[1757219423212,8.12,202.63,202.6,1.54559826]
[1757219423412,8.12,202.63,202.61,7.67]
[1757219430214,13.65255881,202.63,202.57,7.67]
[1757219430415,8.12,202.61,202.57,7.67]
[1757219430620,5.53255881,202.62,202.57,7.67]
[1757219430621,13.65255881,202.62,202.57,7.67]
[1757219431416,5.53255881,202.62,202.56,1.54559826]
[1757219431720,8.12,202.61,202.56,9.21559826]
[1757219431920,13.65255881,202.62,202.56,9.21559826]
[1757219436727,5.53255881,202.62,202.58,1.54559826]
[1757219436921,8.12,202.61,202.58,1.54559826]
[1757219437322,5.53255881,202.62,202.58,1.54559826]
[1757219437723,8.12,202.61,202.58,1.54559826]
[1757219438022,5.53255881,202.62,202.58,1.54559826]
[1757219438730,8.12,202.61,202.58,1.54559826]
[1757219439126,5.53255881,202.62,202.58,1.54559826]
[1757219439828,8.12,202.62,202.58,9.21559826]
[1757219441225,5.53255881,202.63,202.58,9.21559826]
[1757219441532,8.12,202.62,202.58,9.21559826]
[1757219441734,5.53255881,202.63,202.58,9.21559826]
[1757219442230,5.53255881,202.62,202.58,9.21559826]
[1757219442427,8.12,202.61,202.58,9.21559826]
[1757219442929,5.53255881,202.62,202.58,9.21559826]
[1757219443933,8.12,202.61,202.58,9.21559826]
[1757219444234,5.53255881,202.62,202.58,9.21559826]
[1757219445231,8.12,202.61,202.58,9.21559826]
[1757219445433,5.53255881,202.62,202.58,9.21559826]
[1757219445626,8.12,202.61,202.58,1.54559826]
[1757219445826,8.12,202.61,202.56,9.21559826]
[1757219446229,5.53255881,202.62,202.56,1.54559826]
[1757219446424,8.12,202.61,202.56,9.21559826]
[1757219446633,5.53255881,202.62,202.56,1.54559826]
[1757219447236,8.12,202.61,202.56,9.21559826]
[1757219447430,5.53255881,202.62,202.56,1.54559826]
[1757219447734,8.12,202.61,202.56,9.21559826]
[1757219447935,5.53255881,202.62,202.56,1.54559826]
[1757219448234,8.12,202.61,202.57,7.67]
[1757219448736,8.12,202.61,202.56,9.21559826]
[1757219448930,5.53255881,202.61,202.56,1.54559826]
[1757219449137,8.12,202.6,202.56,1.54559826]
[1757219449338,8.12,202.6,202.57,7.46]
[1757219449638,13.65255881,202.6,202.58,7.46]
[1757219450730,13.65255881,202.6,202.59,7.46]
[1757219451136,5.53255881,202.6,202.59,7.46]
[1757219451333,5.53255881,202.61,202.59,7.46]
[1757219451638,5.53255881,202.62,202.59,7.46]
[1757219451838,5.53255881,202.62,202.58,1.54559826]
[1757219452038,13.52255881,202.62,202.59,7.46]
[1757219452836,7.99,202.61,202.59,7.46]
[1757219458550,5.53255881,202.62,202.59,7.46]
[1757219458750,7.99,202.61,202.59,7.46]
[1757219459248,13.52255881,202.61,202.59,7.46]
[1757219459647,7.99,202.61,202.59,7.46]
[1757219460148,13.52255881,202.61,202.54,7.46]
[1757219460348,13.52255881,202.61,202.55,9.10405343]
[1757219460552,7.99,202.59,202.57,7.46]
[1757219466457,7.99,202.59,202.58,4.45401263]
[1757219469055,7.99,202.59,202.57,7.46]
[1757219470658,7.99,202.59,202.53,2.41325728]
[1757219470858,7.99,202.59,202.54,16.57025006]
[1757219471058,7.99,202.59,202.55,9.11025006]
[1757219471257,7.99,202.59,202.56,16.5702838]
[1757219471459,7.99,202.59,202.57,4.45499181]
[1757219471658,7.99,202.59,202.58,4.45499181]
[1757219477966,13.52255881,202.59,202.53,2.41325728]
[1757219478156,13.52255881,202.59,202.55,7.46]
[1757219478364,13.52255881,202.59,202.56,4.45112982]
[1757219478564,13.52255881,202.59,202.57,11.91112982]
[1757219478767,13.52255881,202.59,202.57,7.46]
[1757219482968,5.53255881,202.59,202.53,2.41325728]
[1757219483169,7.73,202.58,202.55,7.87]
[1757219483471,7.73,202.58,202.56,12.32081919]
[1757219483671,7.73,202.58,202.57,4.45081919]
[1757219497778,8.30263247,202.59,202.52,78.54921318]
[1757219497976,5.53520605,202.56,202.53,9.10562238]
[1757219498281,7.73,202.55,202.54,4.45098431]
[1757219498477,7.73,202.55,202.54,4.45080702]
[1757219512689,5.53520605,202.56,202.49,2.41325728]
[1757219512891,5.53520605,202.56,202.5,9.08385669]
[1757219513092,7.44,202.55,202.51,16.83385669]
[1757219513287,5.53520605,202.56,202.52,4.43305619]
[1757219513493,7.44,202.55,202.53,4.43305619]
[1757219513693,5.53520605,202.56,202.52,7.75]
[1757219513992,5.53520605,202.56,202.53,4.43275455]
[1757219514194,5.53520605,202.56,202.52,7.75]
[1757219514693,7.44,202.55,202.49,2.41325728]
[1757219514888,5.53520605,202.56,202.5,9.08257577]
[1757219515090,7.44,202.55,202.51,16.83257577]
[1757219515290,7.44,202.55,202.52,4.43243108]
[1757219515593,7.44,202.55,202.51,9.29561121]
[1757219515794,5.53520605,202.56,202.52,4.43215788]
[1757219515999,5.53520605,202.56,202.51,9.29561121]
[1757219516297,5.53520605,202.56,202.52,4.43215788]
[1757219516489,7.44,202.55,202.51,9.29561121]
[1757219516688,7.44,202.55,202.52,4.43192394]
[1757219516890,5.53520605,202.56,202.51,9.29561121]
[1757219517090,5.53520605,202.56,202.52,4.43192394]
[1757219517292,7.44,202.55,202.51,9.29561121]
[1757219517498,7.44,202.55,202.52,4.43173293]
[1757219517699,5.53520605,202.56,202.51,1.54561121]
[1757219517891,5.53520605,202.56,202.52,12.18173293]
[1757219518095,7.44,202.55,202.52,7.75]
[1757219518601,5.53520605,202.56,202.52,7.75]
[1757219519199,7.44,202.55,202.52,7.75]
[1757219519394,5.53520605,202.56,202.52,7.75]
[1757219520000,7.44,202.55,202.52,7.75]
[1757219520201,5.53520605,202.56,202.52,7.75]
[1757219520403,7.44,202.55,202.52,7.75]
[1757219521000,5.53520605,202.56,202.52,7.75]
[1757219521203,7.44,202.55,202.52,7.75]
[1757219521403,5.53520605,202.56,202.52,7.75]
[1757219521601,7.44,202.55,202.52,7.75]
[1757219522401,5.53520605,202.56,202.52,7.75]
[1757219522601,7.44,202.55,202.52,7.75]
[1757219522999,5.53520605,202.56,202.52,7.75]
[1757219523400,7.44,202.55,202.52,7.75]
[1757219525910,5.53520605,202.56,202.52,7.75]
[1757219526110,7.44,202.55,202.51,1.54561121]
[1757219526310,5.53520605,202.56,202.51,1.54561121]
[1757219526710,7.44,202.55,202.51,9.29561121]
[1757219527103,5.53520605,202.56,202.51,9.29561121]
[1757219527812,7.44,202.55,202.51,9.29561121]
[1757219528013,5.53520605,202.56,202.51,9.29561121]
[1757219528411,7.44,202.55,202.51,9.29561121]
[1757219528609,5.53520605,202.56,202.51,9.29561121]
[1757219528810,7.44,202.55,202.51,9.29561121]
[1757219529113,7.44,202.55,202.52,4.43179371]
[1757219529313,7.44,202.55,202.51,9.29561121]
[1757219529514,7.44,202.55,202.52,4.43179371]
[1757219529715,5.53520605,202.56,202.51,9.29561121]
[1757219530012,7.44,202.55,202.52,12.18179371]
[1757219530218,5.53520605,202.56,202.52,7.75]
[1757219531418,7.44,202.55,202.52,7.75]
[1757219531617,5.53520605,202.56,202.52,7.75]
[1757219532018,7.44,202.55,202.52,7.75]
[1757219532918,7.44,202.55,202.51,1.54561121]
[1757219533116,7.44,202.55,202.53,7.75]
[1757219534018,5.53520605,202.56,202.53,7.75]
[1757219534420,7.44,202.55,202.53,7.75]
[1757219538420,5.53520605,202.56,202.51,1.54561121]
[1757219538721,12.97520605,202.56,202.53,7.75]
[1757219539221,5.53520605,202.55,202.53,7.75]
[1757219541324,5.53520605,202.54,202.53,7.75]
[1757219541525,5.53520605,202.54,202.53,12.18316942]
[1757219543021,13.53520605,202.54,202.53,4.43316942]
[1757219545227,5.53520605,202.54,202.53,12.52316942]
[1757219545929,13.53520605,202.54,202.53,4.43316942]
[1757219547931,8.0,202.54,202.53,4.43316942]
[1757219549437,9.54561121,202.54,202.53,4.43316942]
[1757219549630,9.54561121,202.54,202.48,8.09]
[1757219549828,8.0,202.51,202.49,9.09351028]
[1757219550037,8.0,202.51,202.5,9.09351028]
[1757219550238,13.54242425,202.51,202.5,4.43607931]
[1757219551532,8.0,202.51,202.5,4.43607931]
[1757219554136,8.0,202.51,202.47,8.09]
[1757219554437,8.0,202.51,202.48,17.10892501]
[1757219554739,8.0,202.51,202.49,4.4316606]
[1757219554936,8.0,202.51,202.5,4.4316606]
[1757219557140,8.0,202.51,202.48,8.09]
[1757219557439,7.08803546,202.52,202.49,4.43023549]
[1757219557641,8.0,202.51,202.45,9.63561121]
[1757219557938,7.08803546,202.52,202.46,9.00290731]
[1757219558140,8.0,202.51,202.47,17.09290731]
[1757219558439,7.08803546,202.52,202.48,4.43023585]
[1757219558638,8.0,202.51,202.49,4.43023585]
[1757219558937,8.0,202.51,202.47,8.09]
[1757219559138,8.0,202.51,202.48,4.42974753]
[1757219559334,8.0,202.51,202.49,4.42974753]
[1757219559634,5.54242425,202.52,202.47,8.09]
[1757219559938,8.0,202.51,202.48,4.42921411]
[1757219560130,7.08803546,202.52,202.49,4.42921411]
[1757219560334,8.0,202.5,202.45,1.54561121]
[1757219560536,8.0,202.5,202.47,8.09]
[1757219560839,8.0,202.5,202.48,4.42874497]
[1757219561040,8.0,202.5,202.45,1.54561121]